[Event "SRB-chT Men 1st League 2019"]
[Site "Subotica"]
[Date "2019.08.27"]
[Round "6.13"]
[White "Indjic, Aleksandar"]
[Black "Ponkratov, Pavel"]
[Result "1-0"]
[ECO "E35"]
[WhiteElo "2617"]
[BlackElo "2638"]
[Annotator "RC"]
[PlyCount "87"]
[EventDate "2019.08.23"]
[EventType "team-tourn"]
[EventCountry "SRB"]
[SourceTitle "playchess.com"]
[Source "ChessBase"]
[SourceQuality "1"]
[TimeControl "40/5400+30:1800+30"]

1. d4 {[%emt 0:00:21]} Nf6 {[%emt 0:00:00]} 2. c4 {[%emt 0:00:14]} e6 {[%emt 0:00:00]} 3. Nc3 {[%emt 0:00:41]} Bb4 {[%emt 0:00:00]} 4. Qc2 {[%emt 0:00:08]} d5 {[%emt 0:00:00]} 5. cxd5 {[%emt 0:00:23]} exd5 {[%emt 0:00:00]} 6. Bg5 {[%emt 0:00:25]} h6 {[%emt 0:00:05]} 7. Bh4 {[%emt 0:00:09]} g5 {[%emt 0:00:30]} 8. Bg3 {[%emt 0:00:11]} Nc6 {[%emt 0:00:05]} 9. e3 {[%emt 0:00:14]} h5 {[%emt 0:00:05]} 10. Bd3 {[%emt 0:00:40]} h4 {[%emt 0:14:37]} 11. Be5 {[%emt 0:00:11]} Rh6 {[%emt 0:00:37]} 12. f4 {[%emt 0:08:35]} Nh5 {[%emt 0:12:59]} 13. Nf3 {[%emt 0:03:21]} g4 {[%emt 0:02:58]} 14. Ng5 {[%emt 0:00:59]} Be7 {[%emt 0:05:43]} 15. O-O {[%emt 0:01:51]} Nb4 {[%emt 0:13:41]} 16. Qa4+ {[%emt 0:00:21]} Bd7 {[%emt 0:00:10]} 17. Bb5 {[%emt 0:00:17]} c6 {[%emt 0:00:05]} 18. e4 {[%emt 0:03:39]} cxb5 {[%emt 0:01:37]} 19. Qb3 {[%emt 0:00:08]} Bc6 {[%emt 0:15:24]} 20. Rae1 {[%emt 0:05:44]} Kf8 {[%emt 0:14:13]} 21. Re3 {[%emt 0:17:12]} Be8 {[%emt 0:11:02]} 22. exd5 {[%emt 0:03:59]} a5 {[%emt 0:00:02]} 23. d6 {[%emt 0:04:23]} Rxd6 {[%emt 0:00:14]} 24. Nxb5 {[%emt 0:00:39]} Rd5 {[%emt 0:02:15]} 25. Nc7 {[%emt 0:01:45]} Rxe5 {[%emt 0:02:21]} 26. fxe5 {[%emt 0:00:22]} Bxg5 {[%emt 0:01:35]} 27. Ne6+ {[%emt 0:00:20]} Kg8 {[%emt 0:00:03]} 28. Nxd8 {[%emt 0:00:08]} a4 {[%emt 0:00:03]} 29. Qxb4 {[%emt 0:04:07]} Bxe3+ {[%emt 0:00:04]} 30. Kh1 {[%emt 0:00:10]} Rxd8 {[%emt 0:00:10]} 31. Qe7 {[%emt 0:00:08]} Rc8 {[%emt 0:00:15]} 32. Qxb7 {[%emt 0:01:06]} Rc6 {[%emt 0:00:35]} 33. Qb8 {[%emt 0:00:35]} Kf8 {[%emt 0:00:50]} 34. Qb4+ {[%emt 0:02:15]} Kg7 {[%emt 0:02:22]} 35. d5 {[%emt 0:00:06]} Rg6 {[%emt 0:00:17]} 36. Rf5 {[%emt 0:02:18]} a3 {[%emt 0:01:22]} 37. b3 {[%emt 0:00:56]} Bg5 {[%emt 0:01:15]} 38. Qxg4 {[%emt 0:01:15]} Kh6 {[%emt 0:00:29]} 39. Qb4 {[%emt 0:00:56]} Ng7 {[%emt 0:00:06]} 40. Rf3 {[%emt 0:00:00]} Kh7 {[%emt 0:00:00]} 41. Qxa3 {[%emt 0:03:57]} Rb6 {[%emt 0:00:26]} 42. Qc5 {[%emt 0:00:44]} Rb5 {[%emt 0:00:05]} 43. Qc4 {[%emt 0:00:29]} Be7 {[%emt 0:00:24]} 44. Rxf7 {[%emt 0:00:34]} 1-0

[Event "SRB-chT Men 1st League 2019"]
[Site "Subotica"]
[Date "2019.08.27"]
[Round "6.14"]
[White "Pap, Misa"]
[Black "Ivic, Velimir"]
[Result "0-1"]
[ECO "B22"]
[WhiteElo "2454"]
[BlackElo "2511"]
[Annotator "ChessBase"]
[PlyCount "94"]
[EventDate "2019.08.23"]
[EventType "team-tourn"]
[EventCountry "SRB"]
[SourceTitle "playchess.com"]
[Source "ChessBase"]
[SourceQuality "1"]
[TimeControl "40/5400+30:1800+30"]

1. e4 {[%emt 0:00:00]} c5 {[%emt 0:00:05]} 2. c3 {[%emt 0:00:00]} Nf6 {[%emt 0:00:06]} 3. e5 {[%emt 0:00:00]} Nd5 {[%emt 0:00:07]} 4. Nf3 {[%emt 0:00:04]} Nc6 {[%emt 0:00:06]} 5. Bc4 {[%emt 0:00:09]} Nb6 {[%emt 0:00:06]} 6. Bb3 {[%emt 0:00:04]} d5 {[%emt 0:00:06]} 7. exd6 {[%emt 0:00:09]} Qxd6 {[%emt 0:00:06]} 8. O-O {[%emt 0:02:36]} Be6 {[%emt 0:00:24]} 9. Na3 {[%emt 0:01:32]} Bxb3 {[%emt 0:00:17]} 10. Qxb3 {[%emt 0:05:45]} Qd3 {[%emt 0:00:14]} 11. Re1 {[%emt 0:11:23]} e6 {[%emt 0:00:45]} 12. Re3 {[%emt 0:05:01]} Qd7 {[%emt 0:00:24]} 13. Nc4 {[%emt 0:09:07]} Nxc4 {[%emt 0:03:20]} 14. Qxc4 {[%emt 0:00:16]} Be7 {[%emt 0:04:12]} 15. b3 {[%emt 0:03:49]} O-O {[%emt 0:03:23]} 16. Bb2 {[%emt 0:06:20]} Rad8 {[%emt 0:02:53]} 17. Rd1 {[%emt 0:02:28]} b6 {[%emt 0:02:30]} 18. Qg4 {[%emt 0:06:17]} Bf6 {[%emt 0:06:27]} 19. d3 {[%emt 0:05:02]} h6 {[%emt 0:23:29]} 20. h4 {[%emt 0:03:37]} g6 {[%emt 0:14:57]} 21. h5 {[%emt 0:10:11]} g5 {[%emt 0:00:06]} 22. Nd2 {[%emt 0:01:24]} Bg7 {[%emt 0:13:51]} 23. Qe2 {[%emt 0:04:26]} Ne7 {[%emt 0:23:36]} 24. Nb1 {[%emt 0:04:09]} Nd5 {[%emt 0:00:00]} 25. Rf3 {[%emt 0:00:18]} Nf4 {[%emt 0:00:00]} 26. Qc2 {[%emt 0:03:27]} Nxg2 {[%emt 0:00:00]} 27. d4 {[%emt 0:01:20]} Nf4 {[%emt 0:00:00]} 28. Nd2 {[%emt 0:03:41]} cxd4 {[%emt 0:00:00]} 29. cxd4 {[%emt 0:00:06]} Ne2+ {[%emt 0:00:00]} 30. Kf1 {[%emt 0:00:07]} Nxd4 {[%emt 0:00:00]} 31. Bxd4 {[%emt 0:00:05]} Qxd4 {[%emt 0:00:00]} 32. Ke2 {[%emt 0:00:26]} Qe5+ {[%emt 0:00:00]} 33. Re3 {[%emt 0:00:14]} Qh2 {[%emt 0:00:00]} 34. Nf3 {[%emt 0:00:20]} Qxh5 {[%emt 0:00:00]} 35. Rg1 {[%emt 0:00:16]} g4 {[%emt 0:00:00]} 36. Nd2 {[%emt 0:00:15]} Qb5+ {[%emt 0:00:00]} 37. Qc4 {[%emt 0:01:27]} Qxc4+ {[%emt 0:00:00]} 38. bxc4 {[%emt 0:01:10]} h5 {[%emt 0:00:00]} 39. Ne4 {[%emt 0:00:18]} f5 {[%emt 0:00:00]} 40. Ng5 {[%emt 0:00:00]} Bh6 {[%emt 0:00:00]} 41. Rxe6 {[%emt 0:00:08]} Rfe8 {[%emt 0:01:09]} 42. Kf1 {[%emt 0:00:24]} Kg7 {[%emt 0:07:28]} 43. Rxe8 {[%emt 0:00:28]} Rxe8 {[%emt 0:00:04]} 44. Nf3 {[%emt 0:00:03]} Re4 {[%emt 0:00:30]} 45. Ne1 {[%emt 0:01:29]} Rxc4 {[%emt 0:00:58]} 46. Nd3 {[%emt 0:00:04]} Rc3 {[%emt 0:00:32]} 47. Ke2 {[%emt 0:00:05]} Rc2+ {[%emt 0:00:04]} 0-1

[Event "SRB-chT Men 1st League 2019"]
[Site "Subotica"]
[Date "2019.08.27"]
[Round "6.16"]
[White "Arsovic, Zoran"]
[Black "Stojanovic, Mihajlo"]
[Result "0-1"]
[ECO "A11"]
[WhiteElo "2370"]
[BlackElo "2475"]
[Annotator "ChessBase"]
[PlyCount "76"]
[EventDate "2019.08.23"]
[EventType "team-tourn"]
[EventCountry "SRB"]
[SourceTitle "playchess.com"]
[Source "ChessBase"]
[SourceQuality "1"]
[TimeControl "40/5400+30:1800+30"]

1. Nf3 {[%emt 0:00:00]} d5 {[%emt 0:00:00]} 2. g3 {[%emt 0:00:18]} Nf6 {[%emt 0:00:00]} 3. Bg2 {[%emt 0:00:14]} c6 {[%emt 0:00:00]} 4. O-O {[%emt 0:00:33]} Bf5 {[%emt 0:01:20]} 5. c4 {[%emt 0:03:55]} e6 {[%emt 0:00:05]} 6. cxd5 {[%emt 0:03:22]} exd5 {[%emt 0:00:04]} 7. d3 {[%emt 0:00:37]} Na6 {[%emt 0:00:10]} 8. Nc3 {[%emt 0:08:43]} Be7 {[%emt 0:00:08]} 9. a3 {[%emt 0:05:13]} d4 {[%emt 0:14:08]} 10. Ne4 {[%emt 0:04:27]} O-O {[%emt 0:05:02]} 11. Nxf6+ {[%emt 0:02:54]} Bxf6 {[%emt 0:00:07]} 12. Bd2 {[%emt 0:08:36]} Re8 {[%emt 0:01:19]} 13. a4 {[%emt 0:02:05]} h6 {[%emt 0:10:07]} 14. Re1 {[%emt 0:07:08]} Qd7 {[%emt 0:06:24]} 15. Qb3 {[%emt 0:08:25]} Re7 {[%emt 0:03:22]} 16. Rac1 {[%emt 0:09:26]} Rae8 {[%emt 0:01:31]} 17. Kf1 {[%emt 0:01:45]} Bh3 {[%emt 0:02:26]} 18. Ng1 {[%emt 0:00:34]} Bxg2+ {[%emt 0:00:12]} 19. Kxg2 {[%emt 0:00:04]} c5 {[%emt 0:08:19]} 20. Kf1 {[%emt 0:14:40]} Bg5 {[%emt 0:10:58]} 21. Bxg5 {[%emt 0:03:20]} hxg5 {[%emt 0:00:03]} 22. h3 {[%emt 0:01:14]} b6 {[%emt 0:07:03]} 23. Qc4 {[%emt 0:00:41]} Nb4 {[%emt 0:05:11]} 24. a5 {[%emt 0:00:05]} Qf5 {[%emt 0:01:38]} 25. axb6 {[%emt 0:00:37]} axb6 {[%emt 0:00:02]} 26. Ra1 {[%emt 0:04:10]} Re3 {[%emt 0:07:41]} 27. g4 {[%emt 0:00:41]} Qf6 {[%emt 0:05:47]} 28. Red1 {[%emt 0:00:43]} R3e5 {[%emt 0:05:28]} 29. Ra7 {[%emt 0:00:16]} R8e6 {[%emt 0:01:46]} 30. Rd7 {[%emt 0:01:42]} Qf4 {[%emt 0:01:15]} 31. Kg2 {[%emt 0:01:21]} Rxe2 {[%emt 0:01:19]} 32. Nxe2 {[%emt 0:00:38]} Rxe2 {[%emt 0:00:06]} 33. Rf1 {[%emt 0:00:08]} Nc2 {[%emt 0:01:14]} 34. Kg1 {[%emt 0:04:46]} Ne1 {[%emt 0:00:26]} 35. Qd5 {[%emt 0:00:48]} Re5 {[%emt 0:00:42]} 36. Qa8+ {[%emt 0:02:05]} Kh7 {[%emt 0:00:02]} 37. Rd8 {[%emt 0:00:07]} Nf3+ {[%emt 0:01:15]} 38. Kg2 {[%emt 0:00:04]} Qh2+ {[%emt 0:01:00]} 0-1

[Event "SRB-chT Men 1st League 2019"]
[Site "Subotica"]
[Date "2019.08.27"]
[Round "6.17"]
[White "Vucinic, Gojko"]
[Black "Radlovacki, Jovan"]
[Result "1/2-1/2"]
[ECO "B12"]
[WhiteElo "2396"]
[BlackElo "2265"]
[Annotator "NA"]
[PlyCount "85"]
[EventDate "2019.08.23"]
[EventType "team-tourn"]
[EventCountry "SRB"]
[SourceTitle "playchess.com"]
[Source "ChessBase"]
[SourceQuality "1"]
[TimeControl "40/5400+30:1800+30"]

1. e4 {[%emt 0:00:00]} c6 {[%emt 0:00:01]} 2. d4 {[%emt 0:00:00]} d5 {[%emt 0:00:04]} 3. e5 {[%emt 0:00:01]} Bf5 {[%emt 0:01:03]} 4. h4 {[%emt 0:00:05]} h5 {[%emt 0:00:22]} 5. Bd3 {[%emt 0:00:04]} Bxd3 {[%emt 0:00:16]} 6. Qxd3 {[%emt 0:00:03]} e6 {[%emt 0:00:09]} 7. Bg5 {[%emt 0:00:04]} Be7 {[%emt 0:01:38]} 8. Nf3 {[%emt 0:00:17]} Nd7 {[%emt 0:00:43]} 9. c4 {[%emt 0:04:27]} dxc4 {[%emt 0:13:56]} 10. Qxc4 {[%emt 0:00:09]} Nh6 {[%emt 0:00:06]} 11. Nc3 {[%emt 0:15:32]} Nf5 {[%emt 0:00:42]} 12. Rd1 {[%emt 0:09:23]} Nb6 {[%emt 0:07:19]} 13. Qb3 {[%emt 0:08:20]} O-O {[%emt 0:06:48]} 14. g3 {[%emt 0:04:49]} Qd7 {[%emt 0:06:08]} 15. Bxe7 {[%emt 0:02:28]} Qxe7 {[%emt 0:00:17]} 16. O-O {[%emt 0:00:08]} Rad8 {[%emt 0:00:26]} 17. Ne4 {[%emt 0:05:16]} Rd7 {[%emt 0:01:53]} 18. Rd3 {[%emt 0:03:08]} Nd5 {[%emt 0:07:30]} 19. a3 {[%emt 0:01:22]} Rfd8 {[%emt 0:01:54]} 20. Re1 {[%emt 0:02:05]} b6 {[%emt 0:24:56]} 21. Qa4 {[%emt 0:24:40]} Rc7 {[%emt 0:05:48]} 22. Rc1 {[%emt 0:01:27]} Rdc8 {[%emt 0:00:10]} 23. Rd2 {[%emt 0:05:18]} a5 {[%emt 0:01:02]} 24. Rdc2 {[%emt 0:01:26]} Qd7 {[%emt 0:01:08]} 25. Qc4 {[%emt 0:02:05]} Nde7 {[%emt 0:05:36]} 26. Rd2 {[%emt 0:01:37]} Rf8 {[%emt 0:04:25]} 27. Nfg5 {[%emt 0:02:29]} Nd5 {[%emt 0:01:48]} 28. Qe2 {[%emt 0:02:14]} f6 {[%emt 0:00:42]} 29. Qxh5 {[%emt 0:02:12]} fxg5 {[%emt 0:00:15]} 30. Nxg5 {[%emt 0:00:03]} Nh6 {[%emt 0:00:22]} 31. Qg6 {[%emt 0:00:02]} Rf5 {[%emt 0:01:57]} 32. Nxe6 {[%emt 0:00:54]} Rf6 {[%emt 0:03:46]} 33. Qxg7+ {[%emt 0:02:10]} Qxg7 {[%emt 0:00:08]} 34. Nxg7 {[%emt 0:00:02]} Rg6 {[%emt 0:01:32]} 35. Ne8 {[%emt 0:00:39]} Rf7 {[%emt 0:00:13]} 36. Nd6 {[%emt 0:00:10]} Rf3 {[%emt 0:00:24]} 37. Rxc6 {[%emt 0:00:57]} Ng4 {[%emt 0:00:46]} 38. Re2 {[%emt 0:01:13]} Nf4 {[%emt 0:00:27]} 39. Rc8+ {[%emt 0:00:21]} Kh7 {[%emt 0:00:07]} 40. Rc7+ {[%emt 0:00:00]} Kg8 {[%emt 0:00:00]} 41. Rc8+ {[%emt 0:05:12]} Kh7 {[%emt 0:02:39]} 42. Rec2 {[%emt 0:02:48]} Rg7 {[%emt 0:02:50]} 43. Ne4 {[%emt 0:04:24]} 1/2-1/2

[Event "SRB-chT Men 1st League 2019"]
[Site "Subotica"]
[Date "2019.08.27"]
[Round "6.18"]
[White "Sredojevic, Ivan"]
[Black "Damjanovic, Vuk"]
[Result "0-1"]
[ECO "B19"]
[WhiteElo "2232"]
[BlackElo "2246"]
[Annotator "NA"]
[PlyCount "122"]
[EventDate "2019.08.23"]
[EventType "team-tourn"]
[EventCountry "SRB"]
[SourceTitle "playchess.com"]
[Source "ChessBase"]
[SourceQuality "1"]
[TimeControl "40/5400+30:1800+30"]

1. e4 {[%emt 0:00:00]} c6 {[%emt 0:00:00]} 2. d4 {[%emt 0:03:29]} d5 {[%emt 0:00:00]} 3. Nc3 {[%emt 0:00:12]} dxe4 {[%emt 0:00:25]} 4. Nxe4 {[%emt 0:00:08]} Bf5 {[%emt 0:00:23]} 5. Ng3 {[%emt 0:00:19]} Bg6 {[%emt 0:00:11]} 6. h4 {[%emt 0:01:23]} h6 {[%emt 0:00:11]} 7. Nf3 {[%emt 0:00:05]} Nd7 {[%emt 0:00:09]} 8. h5 {[%emt 0:00:04]} Bh7 {[%emt 0:00:06]} 9. Bd3 {[%emt 0:00:03]} Bxd3 {[%emt 0:00:12]} 10. Qxd3 {[%emt 0:00:05]} e6 {[%emt 0:00:17]} 11. Bd2 {[%emt 0:00:40]} Ngf6 {[%emt 0:00:14]} 12. O-O-O {[%emt 0:00:04]} Be7 {[%emt 0:01:04]} 13. Qe2 {[%emt 0:03:00]} O-O {[%emt 0:13:06]} 14. Ne5 {[%emt 0:01:18]} c5 {[%emt 0:09:42]} 15. Nxd7 {[%emt 0:14:12]} Qxd7 {[%emt 0:02:16]} 16. dxc5 {[%emt 0:03:05]} Qa4 {[%emt 0:04:38]} 17. Kb1 {[%emt 0:12:37]} Bxc5 {[%emt 0:13:40]} 18. Bc3 {[%emt 0:00:48]} Nd5 {[%emt 0:12:08]} 19. Rxd5 {[%emt 0:40:13]} exd5 {[%emt 0:00:08]} 20. Qe5 {[%emt 0:02:40]} Qg4 {[%emt 0:05:11]} 21. Nf5 {[%emt 0:05:05]} d4 {[%emt 0:09:16]} 22. Bd2 {[%emt 0:00:18]} Qxg2 {[%emt 0:07:50]} 23. Rh3 {[%emt 0:02:16]} Bd6 {[%emt 0:05:02]} 24. Qxd4 {[%emt 0:04:43]} Rae8 {[%emt 0:04:20]} 25. Rg3 {[%emt 0:01:24]} Qh1+ {[%emt 0:02:11]} 26. Bc1 {[%emt 0:00:05]} Be5 {[%emt 0:00:11]} 27. Rxg7+ {[%emt 0:01:13]} Kh8 {[%emt 0:00:02]} 28. Qg4 {[%emt 0:00:34]} Rg8 {[%emt 0:00:50]} 29. Rxg8+ {[%emt 0:01:13]} Rxg8 {[%emt 0:00:05]} 30. Qb4 {[%emt 0:00:30]} Qxh5 {[%emt 0:05:06]} 31. Nxh6 {[%emt 0:00:49]} Rg1 {[%emt 0:01:27]} 32. Qe4 {[%emt 0:01:17]} Rxc1+ {[%emt 0:01:09]} 33. Kxc1 {[%emt 0:00:06]} Qxh6+ {[%emt 0:00:02]} 34. Kd1 {[%emt 0:00:07]} Qd6+ {[%emt 0:00:19]} 35. Ke2 {[%emt 0:00:19]} Qe7 {[%emt 0:00:16]} 36. Kf1 {[%emt 0:00:13]} Bf6 {[%emt 0:00:07]} 37. Qf5 {[%emt 0:00:58]} b6 {[%emt 0:02:26]} 38. b4 {[%emt 0:00:20]} Qe5 {[%emt 0:00:38]} 39. Qh3+ {[%emt 0:01:23]} Kg7 {[%emt 0:00:06]} 40. Qg4+ {[%emt 0:00:00]} Qg5 {[%emt 0:00:00]} 41. Qe4 {[%emt 0:00:08]} Qe5 {[%emt 0:02:36]} 42. Qg4+ {[%emt 0:00:09]} Bg5 {[%emt 0:00:12]} 43. c4 {[%emt 0:00:13]} Qf4 {[%emt 0:00:44]} 44. Qe2 {[%emt 0:00:14]} Kg6 {[%emt 0:00:32]} 45. Qd3+ {[%emt 0:01:23]} Qf5 {[%emt 0:01:31]} 46. Qd6+ {[%emt 0:01:35]} f6 {[%emt 0:04:36]} 47. c5 {[%emt 0:01:43]} Qb1+ {[%emt 0:00:41]} 48. Kg2 {[%emt 0:00:45]} Qe4+ {[%emt 0:01:02]} 49. Kf1 {[%emt 0:00:12]} Qxb4 {[%emt 0:04:40]} 50. Qd3+ {[%emt 0:00:16]} f5 {[%emt 0:00:20]} 51. c6 {[%emt 0:00:51]} Qc5 {[%emt 0:00:37]} 52. Qd7 {[%emt 0:00:58]} Bf4 {[%emt 0:05:27]} 53. Qe6+ {[%emt 0:00:33]} Kg5 {[%emt 0:01:01]} 54. Qg8+ {[%emt 0:02:22]} Kf6 {[%emt 0:00:16]} 55. Qh8+ {[%emt 0:00:52]} Ke6 {[%emt 0:01:52]} 56. Qg8+ {[%emt 0:00:35]} Ke5 {[%emt 0:02:12]} 57. Qb8+ {[%emt 0:01:01]} Ke4 {[%emt 0:00:00]} 58. Qb7 {[%emt 0:01:14]} Qd5 {[%emt 0:00:57]} 59. Qe7+ {[%emt 0:00:18]} Be5 {[%emt 0:01:12]} 60. Qh7 {[%emt 0:00:28]} Qc4+ {[%emt 0:00:24]} 61. Kg2 {[%emt 0:00:04]} Qxc6 {[%emt 0:00:55]} 0-1

[Event "SRB-chT Men 1st League 2019"]
[Site "Subotica"]
[Date "2019.08.28"]
[Round "7.6"]
[White "Damjanovic, Vuk"]
[Black "Besedes, Danilo"]
[Result "1/2-1/2"]
[ECO "D35"]
[WhiteElo "2246"]
[BlackElo "2249"]
[Annotator "NA"]
[PlyCount "139"]
[EventDate "2019.08.23"]
[EventType "team-tourn"]
[EventCountry "SRB"]
[SourceTitle "playchess.com"]
[Source "ChessBase"]
[SourceQuality "1"]
[TimeControl "40/5400+30:1800+30"]

1. d4 {[%emt 0:04:01]} d5 {[%emt 0:02:35]} 2. c4 {[%emt 0:00:18]} e6 {[%emt 0:01:33]} 3. Nc3 {[%emt 0:00:56]} Nf6 {[%emt 0:03:30]} 4. cxd5 {[%emt 0:01:58]} exd5 {[%emt 0:03:03]} 5. Bg5 {[%emt 0:00:49]} c6 {[%emt 0:00:08]} 6. e3 {[%emt 0:00:37]} Bf5 {[%emt 0:00:17]} 7. Qf3 {[%emt 0:00:31]} Bg6 {[%emt 0:00:07]} 8. Bxf6 {[%emt 0:00:13]} Qxf6 {[%emt 0:00:06]} 9. Qxf6 {[%emt 0:00:08]} gxf6 {[%emt 0:00:09]} 10. Nf3 {[%emt 0:01:08]} a5 {[%emt 0:00:19]} 11. Kd2 {[%emt 0:06:49]} a4 {[%emt 0:06:05]} 12. Bd3 {[%emt 0:05:55]} a3 {[%emt 0:08:26]} 13. b3 {[%emt 0:00:23]} Bb4 {[%emt 0:01:58]} 14. Rhc1 {[%emt 0:16:24]} Nd7 {[%emt 0:04:22]} 15. Nh4 {[%emt 0:05:03]} Rg8 {[%emt 0:25:16]} 16. g3 {[%emt 0:03:18]} Nb6 {[%emt 0:01:10]} 17. Nf5 {[%emt 0:22:22]} Nc8 {[%emt 0:02:52]} 18. Ke2 {[%emt 0:00:43]} Bxf5 {[%emt 0:06:23]} 19. Bxf5 {[%emt 0:00:05]} Nd6 {[%emt 0:00:18]} 20. Bd3 {[%emt 0:00:55]} f5 {[%emt 0:01:17]} 21. f3 {[%emt 0:00:39]} Kd7 {[%emt 0:00:52]} 22. Kf2 {[%emt 0:01:22]} Rae8 {[%emt 0:01:32]} 23. Rc2 {[%emt 0:03:55]} Re6 {[%emt 0:01:36]} 24. Rac1 {[%emt 0:01:34]} Rh6 {[%emt 0:04:09]} 25. Kg2 {[%emt 0:03:54]} Re6 {[%emt 0:02:11]} 26. Kf2 {[%emt 0:00:02]} Rh6 {[%emt 0:04:48]} 27. h4 {[%emt 0:01:59]} Rf6 {[%emt 0:02:25]} 28. Be2 {[%emt 0:02:42]} f4 {[%emt 0:02:13]} 29. gxf4 {[%emt 0:01:41]} Rfg6 {[%emt 0:02:17]} 30. Bf1 {[%emt 0:01:48]} Rh6 {[%emt 0:01:09]} 31. Bh3+ {[%emt 0:00:35]} Ke7 {[%emt 0:00:40]} 32. Ne2 {[%emt 0:02:47]} Rxh4 {[%emt 0:00:47]} 33. Rh1 {[%emt 0:00:56]} Rg6 {[%emt 0:01:33]} 34. Bg2 {[%emt 0:00:24]} Nf5 {[%emt 0:04:42]} 35. Rxh4 {[%emt 0:00:26]} Nxh4 {[%emt 0:00:02]} 36. Bh3 {[%emt 0:00:01]} Kd6 {[%emt 0:01:07]} 37. e4 {[%emt 0:02:18]} Rg8 {[%emt 0:03:51]} 38. f5 {[%emt 0:00:36]} Rg5 {[%emt 0:02:03]} 39. Nf4 {[%emt 0:01:18]} dxe4 {[%emt 0:00:48]} 40. fxe4 {[%emt 0:00:00]} Ba5 {[%emt 0:00:00]} 41. f6 {[%emt 0:07:41]} Bb6 {[%emt 0:02:58]} 42. Rc4 {[%emt 0:02:06]} Re5 {[%emt 0:04:48]} 43. Ke3 {[%emt 0:09:53]} Rg5 {[%emt 0:00:13]} 44. Kd3 {[%emt 0:07:53]} Rg3+ {[%emt 0:01:09]} 45. Kc2 {[%emt 0:00:49]} Bxd4 {[%emt 0:01:57]} 46. Rxd4+ {[%emt 0:03:01]} Ke5 {[%emt 0:00:30]} 47. Rb4 {[%emt 0:04:28]} Kxf4 {[%emt 0:01:14]} 48. e5+ {[%emt 0:00:05]} Kg5 {[%emt 0:00:08]} 49. Rxb7 {[%emt 0:01:50]} Rxh3 {[%emt 0:02:12]} 50. Rxf7 {[%emt 0:00:05]} Re3 {[%emt 0:01:46]} 51. Rg7+ {[%emt 0:01:58]} Kh6 {[%emt 0:01:11]} 52. Rg8 {[%emt 0:00:42]} Ng6 {[%emt 0:03:57]} 53. f7 {[%emt 0:00:11]} Nf8 {[%emt 0:00:06]} 54. Rxf8 {[%emt 0:01:27]} Kg7 {[%emt 0:00:06]} 55. Rh8 {[%emt 0:00:16]} Kxf7 {[%emt 0:00:14]} 56. Rxh7+ {[%emt 0:00:05]} Ke6 {[%emt 0:00:09]} 57. Rh6+ {[%emt 0:03:50]} Kd5 {[%emt 0:00:20]} 58. Rd6+ {[%emt 0:00:15]} Kc5 {[%emt 0:00:08]} 59. Rd3 {[%emt 0:00:47]} Rxe5 {[%emt 0:00:28]} 60. Kc3 {[%emt 0:00:02]} Re4 {[%emt 0:00:42]} 61. Rh3 {[%emt 0:00:18]} Kb5 {[%emt 0:00:41]} 62. Rh8 {[%emt 0:00:53]} Re3+ {[%emt 0:00:13]} 63. Kd2 {[%emt 0:00:21]} Rg3 {[%emt 0:00:09]} 64. Rh2 {[%emt 0:00:59]} c5 {[%emt 0:00:26]} 65. Kc2 {[%emt 0:00:04]} Rf3 {[%emt 0:00:48]} 66. Rg2 {[%emt 0:00:05]} Rf1 {[%emt 0:00:43]} 67. Rh2 {[%emt 0:00:40]} Rf4 {[%emt 0:00:36]} 68. Kc3 {[%emt 0:00:09]} Rg4 {[%emt 0:00:16]} 69. Rf2 {[%emt 0:00:06]} Rg1 {[%emt 0:01:15]} 70. Rh2 {[%emt 0:00:09]} 1/2-1/2

[Event "SRB-chT Men 1st League 2019"]
[Site "Subotica"]
[Date "2019.08.28"]
[Round "7.12"]
[White "Jandric, Damjan"]
[Black "Ostojic, Nikola"]
[Result "1/2-1/2"]
[ECO "B11"]
[WhiteElo "2183"]
[BlackElo "2432"]
[Annotator "NA"]
[PlyCount "91"]
[EventDate "2019.08.23"]
[EventType "team-tourn"]
[EventCountry "SRB"]
[SourceTitle "playchess.com"]
[Source "ChessBase"]
[SourceQuality "1"]
[TimeControl "40/5400+30:1800+30"]

1. e4 {[%emt 0:00:00]} c6 {[%emt 0:00:00]} 2. Nf3 {[%emt 0:00:03]} d5 {[%emt 0:00:00]} 3. Nc3 {[%emt 0:00:25]} Bg4 {[%emt 0:00:15]} 4. h3 {[%emt 0:00:20]} Bxf3 {[%emt 0:00:04]} 5. Qxf3 {[%emt 0:00:08]} e6 {[%emt 0:00:05]} 6. d3 {[%emt 0:01:09]} Nf6 {[%emt 0:00:43]} 7. Bd2 {[%emt 0:00:38]} Nbd7 {[%emt 0:18:42]} 8. g4 {[%emt 0:08:55]} d4 {[%emt 0:04:14]} 9. Nd1 {[%emt 0:07:59]} Bd6 {[%emt 0:04:30]} 10. Bg2 {[%emt 0:00:57]} Ne5 {[%emt 0:34:07]} 11. Qg3 {[%emt 0:25:25]} Nc4 {[%emt 0:00:25]} 12. Bf4 {[%emt 0:14:54]} Bxf4 {[%emt 0:02:21]} 13. Qxf4 {[%emt 0:00:51]} e5 {[%emt 0:01:04]} 14. Qg3 {[%emt 0:12:02]} Qa5+ {[%emt 0:00:24]} 15. Ke2 {[%emt 0:02:36]} Nb6 {[%emt 0:01:17]} 16. b4 {[%emt 0:04:42]} Qxb4 {[%emt 0:03:21]} 17. Qxe5+ {[%emt 0:00:23]} Qe7 {[%emt 0:08:46]} 18. Qxe7+ {[%emt 0:00:07]} Kxe7 {[%emt 0:00:03]} 19. f4 {[%emt 0:01:30]} h6 {[%emt 0:00:16]} 20. a4 {[%emt 0:02:07]} g5 {[%emt 0:03:10]} 21. a5 {[%emt 0:02:44]} Nbd7 {[%emt 0:00:08]} 22. Ra4 {[%emt 0:01:27]} gxf4 {[%emt 0:01:03]} 23. Rxd4 {[%emt 0:00:31]} c5 {[%emt 0:00:31]} 24. Ra4 {[%emt 0:00:45]} Ne5 {[%emt 0:00:45]} 25. Rf1 {[%emt 0:00:43]} Rag8 {[%emt 0:01:12]} 26. Rxf4 {[%emt 0:01:04]} h5 {[%emt 0:01:23]} 27. Rf5 {[%emt 0:05:27]} Nfd7 {[%emt 0:00:04]} 28. Bf3 {[%emt 0:02:40]} hxg4 {[%emt 0:00:17]} 29. Bxg4 {[%emt 0:00:12]} Nxg4 {[%emt 0:00:40]} 30. hxg4 {[%emt 0:00:09]} Rxg4 {[%emt 0:00:08]} 31. Ne3 {[%emt 0:01:01]} Rg1 {[%emt 0:02:24]} 32. Ra2 {[%emt 0:02:58]} Rh2+ {[%emt 0:00:28]} 33. Rf2 {[%emt 0:00:13]} Rxf2+ {[%emt 0:00:31]} 34. Kxf2 {[%emt 0:00:07]} Rb1 {[%emt 0:02:31]} 35. Nc4 {[%emt 0:00:57]} Ke6 {[%emt 0:01:27]} 36. Rb2 {[%emt 0:00:20]} Rxb2 {[%emt 0:00:08]} 37. Nxb2 {[%emt 0:00:08]} f5 {[%emt 0:03:43]} 38. Ke3 {[%emt 0:00:42]} fxe4 {[%emt 0:00:17]} 39. Kxe4 {[%emt 0:01:11]} Nf6+ {[%emt 0:00:50]} 40. Ke3 {[%emt 0:00:00]} Kd5 {[%emt 0:00:00]} 41. Kd2 {[%emt 0:07:32]} Kc6 {[%emt 0:01:52]} 42. Kc3 {[%emt 0:05:52]} Kb5 {[%emt 0:02:41]} 43. Nc4 {[%emt 0:01:08]} Nd5+ {[%emt 0:06:48]} 44. Kb3 {[%emt 0:03:02]} Nb4 {[%emt 0:00:17]} 45. Nd6+ {[%emt 0:01:02]} Kc6 {[%emt 0:00:47]} 46. Nc4 {[%emt 0:00:12]} 1/2-1/2